{"text_format":"3","workbook":"xlsx","n_sheets":5,"sheets":["รายงานการขายผลิตภัณฑ์","ข้อมูลประวัติ","รายการราคา","Pivot ช่วงระดับราคา","Pivot แนวโน้มการขาย"],"not_rendered":{"charts":2,"defined_names":6,"pivot_tables":2},"read":"whole","date_system":"1900"}

{"sheet":"รายงานการขายผลิตภัณฑ์","index":0,"n_rows":20,"n_cols":2,"rows_kept":20}
[null,"รายงานการขายผลิตภัณฑ์"]
{"$rows_empty":18}
[null," ผลิตภัณฑ์"]

{"sheet":"ข้อมูลประวัติ","index":1,"n_rows":33,"n_cols":10,"rows_kept":33}
[null,"ประวัติรายการราคาผลิตภัณฑ์และยอดขาย"]
[]
[null,"รหัสผลิตภัณฑ์","ชื่อผลิตภัณฑ์","วันที่กำหนดราคา","ราคาขายปลีกต่อหน่วย","ราคาขายส่งต่อหน่วย*","จำนวนหน่วยที่ขายได้ (ขายปลีก)","จำนวนหน่วยที่ขายได้ (ขายส่ง)","จำนวนขายรวม (#)","จำนวนขายรวม (฿)"]
[null,5,{"$f":"IFERROR(IF(ตารางยอดขาย[[#This Row],[รหัสผลิตภัณฑ์]]<>\"\",VLOOKUP(ตารางยอดขาย[รหัสผลิตภัณฑ์],ตารางผลิตภัณฑ์[[รหัสผลิตภัณฑ์]:[ชื่อ]],2,FALSE),\"\"),\"Unknown Product ID\")","v":"กางเกงขาสั้น"},"2012-01-01",20,{"v":20,"d":"฿20"},629,{"v":1254,"d":"1,254"},{"$f":"ตารางยอดขาย[[#This Row],[จำนวนหน่วยที่ขายได้ (ขายปลีก)]]+ตารางยอดขาย[[#This Row],[จำนวนหน่วยที่ขายได้ (ขายส่ง)]]","v":{"v":1883,"d":"1,883"}},{"$f":"ตารางยอดขาย[[#This Row],[จำนวนหน่วยที่ขายได้ (ขายปลีก)]]*ตารางยอดขาย[[#This Row],[ราคาขายปลีกต่อหน่วย]]+ตารางยอดขาย[[#This Row],[จำนวนหน่วยที่ขายได้ (ขายส่ง)]]*ตารางยอดขาย[[#This Row],[ราคาขายส่งต่อหน่วย*]]","v":{"v":37660,"d":"฿37,660"}}]
[null,1,{"$f":"IFERROR(IF(ตารางยอดขาย[[#This Row],[รหัสผลิตภัณฑ์]]<>\"\",VLOOKUP(ตารางยอดขาย[รหัสผลิตภัณฑ์],ตารางผลิตภัณฑ์[[รหัสผลิตภัณฑ์]:[ชื่อ]],2,FALSE),\"\"),\"Unknown Product ID\")","v":"เสื้อเชิ้ต"},"2012-01-01",88,{"v":54,"d":"฿54"},734,{"v":1427,"d":"1,427"},{"$f":"ตารางยอดขาย[[#This Row],[จำนวนหน่วยที่ขายได้ (ขายปลีก)]]+ตารางยอดขาย[[#This Row],[จำนวนหน่วยที่ขายได้ (ขายส่ง)]]","v":{"v":2161,"d":"2,161"}},{"$f":"ตารางยอดขาย[[#This Row],[จำนวนหน่วยที่ขายได้ (ขายปลีก)]]*ตารางยอดขาย[[#This Row],[ราคาขายปลีกต่อหน่วย]]+ตารางยอดขาย[[#This Row],[จำนวนหน่วยที่ขายได้ (ขายส่ง)]]*ตารางยอดขาย[[#This Row],[ราคาขายส่งต่อหน่วย*]]","v":{"v":141650,"d":"฿141,650"}}]
[null,2,{"$f":"IFERROR(IF(ตารางยอดขาย[[#This Row],[รหัสผลิตภัณฑ์]]<>\"\",VLOOKUP(ตารางยอดขาย[รหัสผลิตภัณฑ์],ตารางผลิตภัณฑ์[[รหัสผลิตภัณฑ์]:[ชื่อ]],2,FALSE),\"\"),\"Unknown Product ID\")","v":"รองเท้าแตะ"},"2012-01-01",70,{"v":44,"d":"฿44"},744,{"v":1043,"d":"1,043"},{"$f":"ตารางยอดขาย[[#This Row],[จำนวนหน่วยที่ขายได้ (ขายปลีก)]]+ตารางยอดขาย[[#This Row],[จำนวนหน่วยที่ขายได้ (ขายส่ง)]]","v":{"v":1787,"d":"1,787"}},{"$f":"ตารางยอดขาย[[#This Row],[จำนวนหน่วยที่ขายได้ (ขายปลีก)]]*ตารางยอดขาย[[#This Row],[ราคาขายปลีกต่อหน่วย]]+ตารางยอดขาย[[#This Row],[จำนวนหน่วยที่ขายได้ (ขายส่ง)]]*ตารางยอดขาย[[#This Row],[ราคาขายส่งต่อหน่วย*]]","v":{"v":97972,"d":"฿97,972"}}]
[null,3,{"$f":"IFERROR(IF(ตารางยอดขาย[[#This Row],[รหัสผลิตภัณฑ์]]<>\"\",VLOOKUP(ตารางยอดขาย[รหัสผลิตภัณฑ์],ตารางผลิตภัณฑ์[[รหัสผลิตภัณฑ์]:[ชื่อ]],2,FALSE),\"\"),\"Unknown Product ID\")","v":"ร่ม"},"2012-01-01",63,{"v":44,"d":"฿44"},681,{"v":1523,"d":"1,523"},{"$f":"ตารางยอดขาย[[#This Row],[จำนวนหน่วยที่ขายได้ (ขายปลีก)]]+ตารางยอดขาย[[#This Row],[จำนวนหน่วยที่ขายได้ (ขายส่ง)]]","v":{"v":2204,"d":"2,204"}},{"$f":"ตารางยอดขาย[[#This Row],[จำนวนหน่วยที่ขายได้ (ขายปลีก)]]*ตารางยอดขาย[[#This Row],[ราคาขายปลีกต่อหน่วย]]+ตารางยอดขาย[[#This Row],[จำนวนหน่วยที่ขายได้ (ขายส่ง)]]*ตารางยอดขาย[[#This Row],[ราคาขายส่งต่อหน่วย*]]","v":{"v":109915,"d":"฿109,915"}}]
[null,4,{"$f":"IFERROR(IF(ตารางยอดขาย[[#This Row],[รหัสผลิตภัณฑ์]]<>\"\",VLOOKUP(ตารางยอดขาย[รหัสผลิตภัณฑ์],ตารางผลิตภัณฑ์[[รหัสผลิตภัณฑ์]:[ชื่อ]],2,FALSE),\"\"),\"Unknown Product ID\")","v":"น้ำขวด"},"2012-01-01",35,{"v":27,"d":"฿27"},602,{"v":1822,"d":"1,822"},{"$f":"ตารางยอดขาย[[#This Row],[จำนวนหน่วยที่ขายได้ (ขายปลีก)]]+ตารางยอดขาย[[#This Row],[จำนวนหน่วยที่ขายได้ (ขายส่ง)]]","v":{"v":2424,"d":"2,424"}},{"$f":"ตารางยอดขาย[[#This Row],[จำนวนหน่วยที่ขายได้ (ขายปลีก)]]*ตารางยอดขาย[[#This Row],[ราคาขายปลีกต่อหน่วย]]+ตารางยอดขาย[[#This Row],[จำนวนหน่วยที่ขายได้ (ขายส่ง)]]*ตารางยอดขาย[[#This Row],[ราคาขายส่งต่อหน่วย*]]","v":{"v":70264,"d":"฿70,264"}}]
[null,1,{"$f":"IFERROR(IF(ตารางยอดขาย[[#This Row],[รหัสผลิตภัณฑ์]]<>\"\",VLOOKUP(ตารางยอดขาย[รหัสผลิตภัณฑ์],ตารางผลิตภัณฑ์[[รหัสผลิตภัณฑ์]:[ชื่อ]],2,FALSE),\"\"),\"Unknown Product ID\")","v":"เสื้อเชิ้ต"},"2012-02-01",55,{"v":44,"d":"฿44"},678,{"v":1515,"d":"1,515"},{"$f":"ตารางยอดขาย[[#This Row],[จำนวนหน่วยที่ขายได้ (ขายปลีก)]]+ตารางยอดขาย[[#This Row],[จำนวนหน่วยที่ขายได้ (ขายส่ง)]]","v":{"v":2193,"d":"2,193"}},{"$f":"ตารางยอดขาย[[#This Row],[จำนวนหน่วยที่ขายได้ (ขายปลีก)]]*ตารางยอดขาย[[#This Row],[ราคาขายปลีกต่อหน่วย]]+ตารางยอดขาย[[#This Row],[จำนวนหน่วยที่ขายได้ (ขายส่ง)]]*ตารางยอดขาย[[#This Row],[ราคาขายส่งต่อหน่วย*]]","v":{"v":103950,"d":"฿103,950"}}]
[null,2,{"$f":"IFERROR(IF(ตารางยอดขาย[[#This Row],[รหัสผลิตภัณฑ์]]<>\"\",VLOOKUP(ตารางยอดขาย[รหัสผลิตภัณฑ์],ตารางผลิตภัณฑ์[[รหัสผลิตภัณฑ์]:[ชื่อ]],2,FALSE),\"\"),\"Unknown Product ID\")","v":"รองเท้าแตะ"},"2012-02-01",83,{"v":54,"d":"฿54"},753,{"v":1005,"d":"1,005"},{"$f":"ตารางยอดขาย[[#This Row],[จำนวนหน่วยที่ขายได้ (ขายปลีก)]]+ตารางยอดขาย[[#This Row],[จำนวนหน่วยที่ขายได้ (ขายส่ง)]]","v":{"v":1758,"d":"1,758"}},{"$f":"ตารางยอดขาย[[#This Row],[จำนวนหน่วยที่ขายได้ (ขายปลีก)]]*ตารางยอดขาย[[#This Row],[ราคาขายปลีกต่อหน่วย]]+ตารางยอดขาย[[#This Row],[จำนวนหน่วยที่ขายได้ (ขายส่ง)]]*ตารางยอดขาย[[#This Row],[ราคาขายส่งต่อหน่วย*]]","v":{"v":116769,"d":"฿116,769"}}]
[null,3,{"$f":"IFERROR(IF(ตารางยอดขาย[[#This Row],[รหัสผลิตภัณฑ์]]<>\"\",VLOOKUP(ตารางยอดขาย[รหัสผลิตภัณฑ์],ตารางผลิตภัณฑ์[[รหัสผลิตภัณฑ์]:[ชื่อ]],2,FALSE),\"\"),\"Unknown Product ID\")","v":"ร่ม"},"2012-02-01",34,{"v":34,"d":"฿34"},986,{"v":1069,"d":"1,069"},{"$f":"ตารางยอดขาย[[#This Row],[จำนวนหน่วยที่ขายได้ (ขายปลีก)]]+ตารางยอดขาย[[#This Row],[จำนวนหน่วยที่ขายได้ (ขายส่ง)]]","v":{"v":2055,"d":"2,055"}},{"$f":"ตารางยอดขาย[[#This Row],[จำนวนหน่วยที่ขายได้ (ขายปลีก)]]*ตารางยอดขาย[[#This Row],[ราคาขายปลีกต่อหน่วย]]+ตารางยอดขาย[[#This Row],[จำนวนหน่วยที่ขายได้ (ขายส่ง)]]*ตารางยอดขาย[[#This Row],[ราคาขายส่งต่อหน่วย*]]","v":{"v":69870,"d":"฿69,870"}}]
[null,4,{"$f":"IFERROR(IF(ตารางยอดขาย[[#This Row],[รหัสผลิตภัณฑ์]]<>\"\",VLOOKUP(ตารางยอดขาย[รหัสผลิตภัณฑ์],ตารางผลิตภัณฑ์[[รหัสผลิตภัณฑ์]:[ชื่อ]],2,FALSE),\"\"),\"Unknown Product ID\")","v":"น้ำขวด"},"2012-02-01",35,{"v":25,"d":"฿25"},848,{"v":1211,"d":"1,211"},{"$f":"ตารางยอดขาย[[#This Row],[จำนวนหน่วยที่ขายได้ (ขายปลีก)]]+ตารางยอดขาย[[#This Row],[จำนวนหน่วยที่ขายได้ (ขายส่ง)]]","v":{"v":2059,"d":"2,059"}},{"$f":"ตารางยอดขาย[[#This Row],[จำนวนหน่วยที่ขายได้ (ขายปลีก)]]*ตารางยอดขาย[[#This Row],[ราคาขายปลีกต่อหน่วย]]+ตารางยอดขาย[[#This Row],[จำนวนหน่วยที่ขายได้ (ขายส่ง)]]*ตารางยอดขาย[[#This Row],[ราคาขายส่งต่อหน่วย*]]","v":{"v":59955,"d":"฿59,955"}}]
[null,5,{"$f":"IFERROR(IF(ตารางยอดขาย[[#This Row],[รหัสผลิตภัณฑ์]]<>\"\",VLOOKUP(ตารางยอดขาย[รหัสผลิตภัณฑ์],ตารางผลิตภัณฑ์[[รหัสผลิตภัณฑ์]:[ชื่อ]],2,FALSE),\"\"),\"Unknown Product ID\")","v":"กางเกงขาสั้น"},"2012-02-01",41,{"v":38,"d":"฿38"},980,{"v":1330,"d":"1,330"},{"$f":"ตารางยอดขาย[[#This Row],[จำนวนหน่วยที่ขายได้ (ขายปลีก)]]+ตารางยอดขาย[[#This Row],[จำนวนหน่วยที่ขายได้ (ขายส่ง)]]","v":{"v":2310,"d":"2,310"}},{"$f":"ตารางยอดขาย[[#This Row],[จำนวนหน่วยที่ขายได้ (ขายปลีก)]]*ตารางยอดขาย[[#This Row],[ราคาขายปลีกต่อหน่วย]]+ตารางยอดขาย[[#This Row],[จำนวนหน่วยที่ขายได้ (ขายส่ง)]]*ตารางยอดขาย[[#This Row],[ราคาขายส่งต่อหน่วย*]]","v":{"v":90720,"d":"฿90,720"}}]
[null,1,{"$f":"IFERROR(IF(ตารางยอดขาย[[#This Row],[รหัสผลิตภัณฑ์]]<>\"\",VLOOKUP(ตารางยอดขาย[รหัสผลิตภัณฑ์],ตารางผลิตภัณฑ์[[รหัสผลิตภัณฑ์]:[ชื่อ]],2,FALSE),\"\"),\"Unknown Product ID\")","v":"เสื้อเชิ้ต"},"2012-02-29",27,{"v":18,"d":"฿18"},533,{"v":1936,"d":"1,936"},{"$f":"ตารางยอดขาย[[#This Row],[จำนวนหน่วยที่ขายได้ (ขายปลีก)]]+ตารางยอดขาย[[#This Row],[จำนวนหน่วยที่ขายได้ (ขายส่ง)]]","v":{"v":2469,"d":"2,469"}},{"$f":"ตารางยอดขาย[[#This Row],[จำนวนหน่วยที่ขายได้ (ขายปลีก)]]*ตารางยอดขาย[[#This Row],[ราคาขายปลีกต่อหน่วย]]+ตารางยอดขาย[[#This Row],[จำนวนหน่วยที่ขายได้ (ขายส่ง)]]*ตารางยอดขาย[[#This Row],[ราคาขายส่งต่อหน่วย*]]","v":{"v":49239,"d":"฿49,239"}}]
[null,2,{"$f":"IFERROR(IF(ตารางยอดขาย[[#This Row],[รหัสผลิตภัณฑ์]]<>\"\",VLOOKUP(ตารางยอดขาย[รหัสผลิตภัณฑ์],ตารางผลิตภัณฑ์[[รหัสผลิตภัณฑ์]:[ชื่อ]],2,FALSE),\"\"),\"Unknown Product ID\")","v":"รองเท้าแตะ"},"2012-02-29",38,{"v":28,"d":"฿28"},952,{"v":1512,"d":"1,512"},{"$f":"ตารางยอดขาย[[#This Row],[จำนวนหน่วยที่ขายได้ (ขายปลีก)]]+ตารางยอดขาย[[#This Row],[จำนวนหน่วยที่ขายได้ (ขายส่ง)]]","v":{"v":2464,"d":"2,464"}},{"$f":"ตารางยอดขาย[[#This Row],[จำนวนหน่วยที่ขายได้ (ขายปลีก)]]*ตารางยอดขาย[[#This Row],[ราคาขายปลีกต่อหน่วย]]+ตารางยอดขาย[[#This Row],[จำนวนหน่วยที่ขายได้ (ขายส่ง)]]*ตารางยอดขาย[[#This Row],[ราคาขายส่งต่อหน่วย*]]","v":{"v":78512,"d":"฿78,512"}}]
[null,3,{"$f":"IFERROR(IF(ตารางยอดขาย[[#This Row],[รหัสผลิตภัณฑ์]]<>\"\",VLOOKUP(ตารางยอดขาย[รหัสผลิตภัณฑ์],ตารางผลิตภัณฑ์[[รหัสผลิตภัณฑ์]:[ชื่อ]],2,FALSE),\"\"),\"Unknown Product ID\")","v":"ร่ม"},"2012-02-29",92,{"v":92,"d":"฿92"},956,{"v":1266,"d":"1,266"},{"$f":"ตารางยอดขาย[[#This Row],[จำนวนหน่วยที่ขายได้ (ขายปลีก)]]+ตารางยอดขาย[[#This Row],[จำนวนหน่วยที่ขายได้ (ขายส่ง)]]","v":{"v":2222,"d":"2,222"}},{"$f":"ตารางยอดขาย[[#This Row],[จำนวนหน่วยที่ขายได้ (ขายปลีก)]]*ตารางยอดขาย[[#This Row],[ราคาขายปลีกต่อหน่วย]]+ตารางยอดขาย[[#This Row],[จำนวนหน่วยที่ขายได้ (ขายส่ง)]]*ตารางยอดขาย[[#This Row],[ราคาขายส่งต่อหน่วย*]]","v":{"v":204424,"d":"฿204,424"}}]
[null,4,{"$f":"IFERROR(IF(ตารางยอดขาย[[#This Row],[รหัสผลิตภัณฑ์]]<>\"\",VLOOKUP(ตารางยอดขาย[รหัสผลิตภัณฑ์],ตารางผลิตภัณฑ์[[รหัสผลิตภัณฑ์]:[ชื่อ]],2,FALSE),\"\"),\"Unknown Product ID\")","v":"น้ำขวด"},"2012-02-29",43,{"v":36,"d":"฿36"},952,{"v":1390,"d":"1,390"},{"$f":"ตารางยอดขาย[[#This Row],[จำนวนหน่วยที่ขายได้ (ขายปลีก)]]+ตารางยอดขาย[[#This Row],[จำนวนหน่วยที่ขายได้ (ขายส่ง)]]","v":{"v":2342,"d":"2,342"}},{"$f":"ตารางยอดขาย[[#This Row],[จำนวนหน่วยที่ขายได้ (ขายปลีก)]]*ตารางยอดขาย[[#This Row],[ราคาขายปลีกต่อหน่วย]]+ตารางยอดขาย[[#This Row],[จำนวนหน่วยที่ขายได้ (ขายส่ง)]]*ตารางยอดขาย[[#This Row],[ราคาขายส่งต่อหน่วย*]]","v":{"v":90976,"d":"฿90,976"}}]
[null,5,{"$f":"IFERROR(IF(ตารางยอดขาย[[#This Row],[รหัสผลิตภัณฑ์]]<>\"\",VLOOKUP(ตารางยอดขาย[รหัสผลิตภัณฑ์],ตารางผลิตภัณฑ์[[รหัสผลิตภัณฑ์]:[ชื่อ]],2,FALSE),\"\"),\"Unknown Product ID\")","v":"กางเกงขาสั้น"},"2012-02-29",98,{"v":73,"d":"฿73"},530,{"v":1452,"d":"1,452"},{"$f":"ตารางยอดขาย[[#This Row],[จำนวนหน่วยที่ขายได้ (ขายปลีก)]]+ตารางยอดขาย[[#This Row],[จำนวนหน่วยที่ขายได้ (ขายส่ง)]]","v":{"v":1982,"d":"1,982"}},{"$f":"ตารางยอดขาย[[#This Row],[จำนวนหน่วยที่ขายได้ (ขายปลีก)]]*ตารางยอดขาย[[#This Row],[ราคาขายปลีกต่อหน่วย]]+ตารางยอดขาย[[#This Row],[จำนวนหน่วยที่ขายได้ (ขายส่ง)]]*ตารางยอดขาย[[#This Row],[ราคาขายส่งต่อหน่วย*]]","v":{"v":157936,"d":"฿157,936"}}]
[null,1,{"$f":"IFERROR(IF(ตารางยอดขาย[[#This Row],[รหัสผลิตภัณฑ์]]<>\"\",VLOOKUP(ตารางยอดขาย[รหัสผลิตภัณฑ์],ตารางผลิตภัณฑ์[[รหัสผลิตภัณฑ์]:[ชื่อ]],2,FALSE),\"\"),\"Unknown Product ID\")","v":"เสื้อเชิ้ต"},"2012-03-31",38,{"v":28,"d":"฿28"},973,{"v":1415,"d":"1,415"},{"$f":"ตารางยอดขาย[[#This Row],[จำนวนหน่วยที่ขายได้ (ขายปลีก)]]+ตารางยอดขาย[[#This Row],[จำนวนหน่วยที่ขายได้ (ขายส่ง)]]","v":{"v":2388,"d":"2,388"}},{"$f":"ตารางยอดขาย[[#This Row],[จำนวนหน่วยที่ขายได้ (ขายปลีก)]]*ตารางยอดขาย[[#This Row],[ราคาขายปลีกต่อหน่วย]]+ตารางยอดขาย[[#This Row],[จำนวนหน่วยที่ขายได้ (ขายส่ง)]]*ตารางยอดขาย[[#This Row],[ราคาขายส่งต่อหน่วย*]]","v":{"v":76594,"d":"฿76,594"}}]
[null,2,{"$f":"IFERROR(IF(ตารางยอดขาย[[#This Row],[รหัสผลิตภัณฑ์]]<>\"\",VLOOKUP(ตารางยอดขาย[รหัสผลิตภัณฑ์],ตารางผลิตภัณฑ์[[รหัสผลิตภัณฑ์]:[ชื่อ]],2,FALSE),\"\"),\"Unknown Product ID\")","v":"รองเท้าแตะ"},"2012-03-31",50,{"v":36,"d":"฿36"},672,{"v":1105,"d":"1,105"},{"$f":"ตารางยอดขาย[[#This Row],[จำนวนหน่วยที่ขายได้ (ขายปลีก)]]+ตารางยอดขาย[[#This Row],[จำนวนหน่วยที่ขายได้ (ขายส่ง)]]","v":{"v":1777,"d":"1,777"}},{"$f":"ตารางยอดขาย[[#This Row],[จำนวนหน่วยที่ขายได้ (ขายปลีก)]]*ตารางยอดขาย[[#This Row],[ราคาขายปลีกต่อหน่วย]]+ตารางยอดขาย[[#This Row],[จำนวนหน่วยที่ขายได้ (ขายส่ง)]]*ตารางยอดขาย[[#This Row],[ราคาขายส่งต่อหน่วย*]]","v":{"v":73380,"d":"฿73,380"}}]
[null,3,{"$f":"IFERROR(IF(ตารางยอดขาย[[#This Row],[รหัสผลิตภัณฑ์]]<>\"\",VLOOKUP(ตารางยอดขาย[รหัสผลิตภัณฑ์],ตารางผลิตภัณฑ์[[รหัสผลิตภัณฑ์]:[ชื่อ]],2,FALSE),\"\"),\"Unknown Product ID\")","v":"ร่ม"},"2012-03-31",24,{"v":23,"d":"฿23"},769,{"v":1629,"d":"1,629"},{"$f":"ตารางยอดขาย[[#This Row],[จำนวนหน่วยที่ขายได้ (ขายปลีก)]]+ตารางยอดขาย[[#This Row],[จำนวนหน่วยที่ขายได้ (ขายส่ง)]]","v":{"v":2398,"d":"2,398"}},{"$f":"ตารางยอดขาย[[#This Row],[จำนวนหน่วยที่ขายได้ (ขายปลีก)]]*ตารางยอดขาย[[#This Row],[ราคาขายปลีกต่อหน่วย]]+ตารางยอดขาย[[#This Row],[จำนวนหน่วยที่ขายได้ (ขายส่ง)]]*ตารางยอดขาย[[#This Row],[ราคาขายส่งต่อหน่วย*]]","v":{"v":55923,"d":"฿55,923"}}]
[null,4,{"$f":"IFERROR(IF(ตารางยอดขาย[[#This Row],[รหัสผลิตภัณฑ์]]<>\"\",VLOOKUP(ตารางยอดขาย[รหัสผลิตภัณฑ์],ตารางผลิตภัณฑ์[[รหัสผลิตภัณฑ์]:[ชื่อ]],2,FALSE),\"\"),\"Unknown Product ID\")","v":"น้ำขวด"},"2012-03-31",72,{"v":57,"d":"฿57"},985,{"v":1848,"d":"1,848"},{"$f":"ตารางยอดขาย[[#This Row],[จำนวนหน่วยที่ขายได้ (ขายปลีก)]]+ตารางยอดขาย[[#This Row],[จำนวนหน่วยที่ขายได้ (ขายส่ง)]]","v":{"v":2833,"d":"2,833"}},{"$f":"ตารางยอดขาย[[#This Row],[จำนวนหน่วยที่ขายได้ (ขายปลีก)]]*ตารางยอดขาย[[#This Row],[ราคาขายปลีกต่อหน่วย]]+ตารางยอดขาย[[#This Row],[จำนวนหน่วยที่ขายได้ (ขายส่ง)]]*ตารางยอดขาย[[#This Row],[ราคาขายส่งต่อหน่วย*]]","v":{"v":176256,"d":"฿176,256"}}]
[null,5,{"$f":"IFERROR(IF(ตารางยอดขาย[[#This Row],[รหัสผลิตภัณฑ์]]<>\"\",VLOOKUP(ตารางยอดขาย[รหัสผลิตภัณฑ์],ตารางผลิตภัณฑ์[[รหัสผลิตภัณฑ์]:[ชื่อ]],2,FALSE),\"\"),\"Unknown Product ID\")","v":"กางเกงขาสั้น"},"2012-03-31",85,{"v":43,"d":"฿43"},721,{"v":1426,"d":"1,426"},{"$f":"ตารางยอดขาย[[#This Row],[จำนวนหน่วยที่ขายได้ (ขายปลีก)]]+ตารางยอดขาย[[#This Row],[จำนวนหน่วยที่ขายได้ (ขายส่ง)]]","v":{"v":2147,"d":"2,147"}},{"$f":"ตารางยอดขาย[[#This Row],[จำนวนหน่วยที่ขายได้ (ขายปลีก)]]*ตารางยอดขาย[[#This Row],[ราคาขายปลีกต่อหน่วย]]+ตารางยอดขาย[[#This Row],[จำนวนหน่วยที่ขายได้ (ขายส่ง)]]*ตารางยอดขาย[[#This Row],[ราคาขายส่งต่อหน่วย*]]","v":{"v":122603,"d":"฿122,603"}}]
[null,1,{"$f":"IFERROR(IF(ตารางยอดขาย[[#This Row],[รหัสผลิตภัณฑ์]]<>\"\",VLOOKUP(ตารางยอดขาย[รหัสผลิตภัณฑ์],ตารางผลิตภัณฑ์[[รหัสผลิตภัณฑ์]:[ชื่อ]],2,FALSE),\"\"),\"Unknown Product ID\")","v":"เสื้อเชิ้ต"},"2012-04-30",91,{"v":65,"d":"฿65"},603,{"v":1226,"d":"1,226"},{"$f":"ตารางยอดขาย[[#This Row],[จำนวนหน่วยที่ขายได้ (ขายปลีก)]]+ตารางยอดขาย[[#This Row],[จำนวนหน่วยที่ขายได้ (ขายส่ง)]]","v":{"v":1829,"d":"1,829"}},{"$f":"ตารางยอดขาย[[#This Row],[จำนวนหน่วยที่ขายได้ (ขายปลีก)]]*ตารางยอดขาย[[#This Row],[ราคาขายปลีกต่อหน่วย]]+ตารางยอดขาย[[#This Row],[จำนวนหน่วยที่ขายได้ (ขายส่ง)]]*ตารางยอดขาย[[#This Row],[ราคาขายส่งต่อหน่วย*]]","v":{"v":134563,"d":"฿134,563"}}]
[null,2,{"$f":"IFERROR(IF(ตารางยอดขาย[[#This Row],[รหัสผลิตภัณฑ์]]<>\"\",VLOOKUP(ตารางยอดขาย[รหัสผลิตภัณฑ์],ตารางผลิตภัณฑ์[[รหัสผลิตภัณฑ์]:[ชื่อ]],2,FALSE),\"\"),\"Unknown Product ID\")","v":"รองเท้าแตะ"},"2012-04-30",91,{"v":55,"d":"฿55"},892,{"v":1823,"d":"1,823"},{"$f":"ตารางยอดขาย[[#This Row],[จำนวนหน่วยที่ขายได้ (ขายปลีก)]]+ตารางยอดขาย[[#This Row],[จำนวนหน่วยที่ขายได้ (ขายส่ง)]]","v":{"v":2715,"d":"2,715"}},{"$f":"ตารางยอดขาย[[#This Row],[จำนวนหน่วยที่ขายได้ (ขายปลีก)]]*ตารางยอดขาย[[#This Row],[ราคาขายปลีกต่อหน่วย]]+ตารางยอดขาย[[#This Row],[จำนวนหน่วยที่ขายได้ (ขายส่ง)]]*ตารางยอดขาย[[#This Row],[ราคาขายส่งต่อหน่วย*]]","v":{"v":181437,"d":"฿181,437"}}]
[null,3,{"$f":"IFERROR(IF(ตารางยอดขาย[[#This Row],[รหัสผลิตภัณฑ์]]<>\"\",VLOOKUP(ตารางยอดขาย[รหัสผลิตภัณฑ์],ตารางผลิตภัณฑ์[[รหัสผลิตภัณฑ์]:[ชื่อ]],2,FALSE),\"\"),\"Unknown Product ID\")","v":"ร่ม"},"2012-04-30",42,{"v":42,"d":"฿42"},611,{"v":1181,"d":"1,181"},{"$f":"ตารางยอดขาย[[#This Row],[จำนวนหน่วยที่ขายได้ (ขายปลีก)]]+ตารางยอดขาย[[#This Row],[จำนวนหน่วยที่ขายได้ (ขายส่ง)]]","v":{"v":1792,"d":"1,792"}},{"$f":"ตารางยอดขาย[[#This Row],[จำนวนหน่วยที่ขายได้ (ขายปลีก)]]*ตารางยอดขาย[[#This Row],[ราคาขายปลีกต่อหน่วย]]+ตารางยอดขาย[[#This Row],[จำนวนหน่วยที่ขายได้ (ขายส่ง)]]*ตารางยอดขาย[[#This Row],[ราคาขายส่งต่อหน่วย*]]","v":{"v":75264,"d":"฿75,264"}}]
[null,4,{"$f":"IFERROR(IF(ตารางยอดขาย[[#This Row],[รหัสผลิตภัณฑ์]]<>\"\",VLOOKUP(ตารางยอดขาย[รหัสผลิตภัณฑ์],ตารางผลิตภัณฑ์[[รหัสผลิตภัณฑ์]:[ชื่อ]],2,FALSE),\"\"),\"Unknown Product ID\")","v":"น้ำขวด"},"2012-04-30",85,{"v":43,"d":"฿43"},530,{"v":1039,"d":"1,039"},{"$f":"ตารางยอดขาย[[#This Row],[จำนวนหน่วยที่ขายได้ (ขายปลีก)]]+ตารางยอดขาย[[#This Row],[จำนวนหน่วยที่ขายได้ (ขายส่ง)]]","v":{"v":1569,"d":"1,569"}},{"$f":"ตารางยอดขาย[[#This Row],[จำนวนหน่วยที่ขายได้ (ขายปลีก)]]*ตารางยอดขาย[[#This Row],[ราคาขายปลีกต่อหน่วย]]+ตารางยอดขาย[[#This Row],[จำนวนหน่วยที่ขายได้ (ขายส่ง)]]*ตารางยอดขาย[[#This Row],[ราคาขายส่งต่อหน่วย*]]","v":{"v":89727,"d":"฿89,727"}}]
[null,5,{"$f":"IFERROR(IF(ตารางยอดขาย[[#This Row],[รหัสผลิตภัณฑ์]]<>\"\",VLOOKUP(ตารางยอดขาย[รหัสผลิตภัณฑ์],ตารางผลิตภัณฑ์[[รหัสผลิตภัณฑ์]:[ชื่อ]],2,FALSE),\"\"),\"Unknown Product ID\")","v":"กางเกงขาสั้น"},"2012-04-30",82,{"v":71,"d":"฿71"},716,{"v":1249,"d":"1,249"},{"$f":"ตารางยอดขาย[[#This Row],[จำนวนหน่วยที่ขายได้ (ขายปลีก)]]+ตารางยอดขาย[[#This Row],[จำนวนหน่วยที่ขายได้ (ขายส่ง)]]","v":{"v":1965,"d":"1,965"}},{"$f":"ตารางยอดขาย[[#This Row],[จำนวนหน่วยที่ขายได้ (ขายปลีก)]]*ตารางยอดขาย[[#This Row],[ราคาขายปลีกต่อหน่วย]]+ตารางยอดขาย[[#This Row],[จำนวนหน่วยที่ขายได้ (ขายส่ง)]]*ตารางยอดขาย[[#This Row],[ราคาขายส่งต่อหน่วย*]]","v":{"v":147391,"d":"฿147,391"}}]
[null,1,{"$f":"IFERROR(IF(ตารางยอดขาย[[#This Row],[รหัสผลิตภัณฑ์]]<>\"\",VLOOKUP(ตารางยอดขาย[รหัสผลิตภัณฑ์],ตารางผลิตภัณฑ์[[รหัสผลิตภัณฑ์]:[ชื่อ]],2,FALSE),\"\"),\"Unknown Product ID\")","v":"เสื้อเชิ้ต"},"2012-05-14",34,{"v":31,"d":"฿31"},850,{"v":1548,"d":"1,548"},{"$f":"ตารางยอดขาย[[#This Row],[จำนวนหน่วยที่ขายได้ (ขายปลีก)]]+ตารางยอดขาย[[#This Row],[จำนวนหน่วยที่ขายได้ (ขายส่ง)]]","v":{"v":2398,"d":"2,398"}},{"$f":"ตารางยอดขาย[[#This Row],[จำนวนหน่วยที่ขายได้ (ขายปลีก)]]*ตารางยอดขาย[[#This Row],[ราคาขายปลีกต่อหน่วย]]+ตารางยอดขาย[[#This Row],[จำนวนหน่วยที่ขายได้ (ขายส่ง)]]*ตารางยอดขาย[[#This Row],[ราคาขายส่งต่อหน่วย*]]","v":{"v":76888,"d":"฿76,888"}}]
[null,2,{"$f":"IFERROR(IF(ตารางยอดขาย[[#This Row],[รหัสผลิตภัณฑ์]]<>\"\",VLOOKUP(ตารางยอดขาย[รหัสผลิตภัณฑ์],ตารางผลิตภัณฑ์[[รหัสผลิตภัณฑ์]:[ชื่อ]],2,FALSE),\"\"),\"Unknown Product ID\")","v":"รองเท้าแตะ"},"2012-05-14",64,{"v":40,"d":"฿40"},876,{"v":1663,"d":"1,663"},{"$f":"ตารางยอดขาย[[#This Row],[จำนวนหน่วยที่ขายได้ (ขายปลีก)]]+ตารางยอดขาย[[#This Row],[จำนวนหน่วยที่ขายได้ (ขายส่ง)]]","v":{"v":2539,"d":"2,539"}},{"$f":"ตารางยอดขาย[[#This Row],[จำนวนหน่วยที่ขายได้ (ขายปลีก)]]*ตารางยอดขาย[[#This Row],[ราคาขายปลีกต่อหน่วย]]+ตารางยอดขาย[[#This Row],[จำนวนหน่วยที่ขายได้ (ขายส่ง)]]*ตารางยอดขาย[[#This Row],[ราคาขายส่งต่อหน่วย*]]","v":{"v":122584,"d":"฿122,584"}}]
[null,3,{"$f":"IFERROR(IF(ตารางยอดขาย[[#This Row],[รหัสผลิตภัณฑ์]]<>\"\",VLOOKUP(ตารางยอดขาย[รหัสผลิตภัณฑ์],ตารางผลิตภัณฑ์[[รหัสผลิตภัณฑ์]:[ชื่อ]],2,FALSE),\"\"),\"Unknown Product ID\")","v":"ร่ม"},"2012-05-14",33,{"v":30,"d":"฿30"},881,{"v":1149,"d":"1,149"},{"$f":"ตารางยอดขาย[[#This Row],[จำนวนหน่วยที่ขายได้ (ขายปลีก)]]+ตารางยอดขาย[[#This Row],[จำนวนหน่วยที่ขายได้ (ขายส่ง)]]","v":{"v":2030,"d":"2,030"}},{"$f":"ตารางยอดขาย[[#This Row],[จำนวนหน่วยที่ขายได้ (ขายปลีก)]]*ตารางยอดขาย[[#This Row],[ราคาขายปลีกต่อหน่วย]]+ตารางยอดขาย[[#This Row],[จำนวนหน่วยที่ขายได้ (ขายส่ง)]]*ตารางยอดขาย[[#This Row],[ราคาขายส่งต่อหน่วย*]]","v":{"v":63543,"d":"฿63,543"}}]
[null,4,{"$f":"IFERROR(IF(ตารางยอดขาย[[#This Row],[รหัสผลิตภัณฑ์]]<>\"\",VLOOKUP(ตารางยอดขาย[รหัสผลิตภัณฑ์],ตารางผลิตภัณฑ์[[รหัสผลิตภัณฑ์]:[ชื่อ]],2,FALSE),\"\"),\"Unknown Product ID\")","v":"น้ำขวด"},"2012-05-14",29,{"v":27,"d":"฿27"},802,{"v":1548,"d":"1,548"},{"$f":"ตารางยอดขาย[[#This Row],[จำนวนหน่วยที่ขายได้ (ขายปลีก)]]+ตารางยอดขาย[[#This Row],[จำนวนหน่วยที่ขายได้ (ขายส่ง)]]","v":{"v":2350,"d":"2,350"}},{"$f":"ตารางยอดขาย[[#This Row],[จำนวนหน่วยที่ขายได้ (ขายปลีก)]]*ตารางยอดขาย[[#This Row],[ราคาขายปลีกต่อหน่วย]]+ตารางยอดขาย[[#This Row],[จำนวนหน่วยที่ขายได้ (ขายส่ง)]]*ตารางยอดขาย[[#This Row],[ราคาขายส่งต่อหน่วย*]]","v":{"v":65054,"d":"฿65,054"}}]
[null,5,{"$f":"IFERROR(IF(ตารางยอดขาย[[#This Row],[รหัสผลิตภัณฑ์]]<>\"\",VLOOKUP(ตารางยอดขาย[รหัสผลิตภัณฑ์],ตารางผลิตภัณฑ์[[รหัสผลิตภัณฑ์]:[ชื่อ]],2,FALSE),\"\"),\"Unknown Product ID\")","v":"กางเกงขาสั้น"},"2013-12-11",24,{"v":15,"d":"฿15"},824,{"v":1994,"d":"1,994"},{"$f":"ตารางยอดขาย[[#This Row],[จำนวนหน่วยที่ขายได้ (ขายปลีก)]]+ตารางยอดขาย[[#This Row],[จำนวนหน่วยที่ขายได้ (ขายส่ง)]]","v":{"v":2818,"d":"2,818"}},{"$f":"ตารางยอดขาย[[#This Row],[จำนวนหน่วยที่ขายได้ (ขายปลีก)]]*ตารางยอดขาย[[#This Row],[ราคาขายปลีกต่อหน่วย]]+ตารางยอดขาย[[#This Row],[จำนวนหน่วยที่ขายได้ (ขายส่ง)]]*ตารางยอดขาย[[#This Row],[ราคาขายส่งต่อหน่วย*]]","v":{"v":49686,"d":"฿49,686"}}]

{"sheet":"รายการราคา","index":2,"n_rows":18,"n_cols":6,"rows_kept":18,"merged":[[15,1,15,5]]}
[null,"รายการราคาผลิตภัณฑ์"]
[]
[null,"Adventure Works"]
[null,"23456 ถนนรามคำแหง"]
[null,"อำเภอเมือง จังหวัดเชียงใหม่ 77503"]
[null,"โทร: (425) 555-0150"]
[null,"โทรสาร: (425) 555-0152"]
[null,"www.adventure-works.com",{"$nulls":3},"อัปเดตล่าสุดเมื่อ 15 ส.ค. 2556"]
[]
[null,"รหัสผลิตภัณฑ์","ชื่อ","คำอธิบาย","ราคาขายปลีกต่อหน่วย","ราคาขายส่งต่อหน่วย*"]
[null,1,"เสื้อเชิ้ต","ช่วยให้คุณเย็นสดชื่นตลอดหน้าร้อนเมื่อใส่เสื้อเชิ้ตที่ทำจากผ้าฝ้าย 100% ที่ผ่านการหดตัวแล้วของเรา",{"v":22,"d":"฿22"},{"v":15,"d":"฿15.00"}]
[null,2,"รองเท้าแตะ","สวมใส่รองเท้าแตะพื้นยางสำหรับการใช้งานหนักของเราและเดินบนพื้นทรายที่ร้อนระอุอย่างสบายใจ",{"v":10,"d":"฿10"},{"v":6,"d":"฿6.00"}]
[null,3,"ร่ม","หลบเลี่ยงแสงอาทิตย์ภายใต้ร่มชายหาดขนาดใหญ่พิเศษของเราที่ปิดกั้นรังสียูวีที่เป็นอันตรายทั้งหมดได้ถึง 96%",{"v":30,"d":"฿30"},{"v":20,"d":"฿20.00"}]
[null,4,"น้ำขวด","เติมความชุ่มฉ่ำให้ตัวคุณด้วยน้ำที่มีอุณหภูมิพอเหมาะจากน้ำขวดหุ้มฉนวนของเรา",{"v":7,"d":"฿7"},{"v":5,"d":"฿5.00"}]
[null,5,"กางเกงขาสั้น","ขึ้นจากน้ำตรงดิ่งไปยังรถของคุณได้เลยเมื่อใส่กางเกงขาสั้นไนลอนแห้งเร็วสุดๆของเรา",{"v":15,"d":"฿15"},{"v":8,"d":"฿8.00"}]
[]
[{"$nulls":5},"โปรดติดต่อเราสำหรับรายการที่ไม่ได้แสดง"]
[{"$nulls":5},"*ราคาขายส่งใช้กับการซื้อตั้งแต่ 12 หน่วยขึ้นไป"]

{"sheet":"Pivot ช่วงระดับราคา","index":3,"n_rows":10,"n_cols":4,"rows_kept":10,"hidden":true,"merged":[[1,1,1,3]]}
[null,"PivotTable ช่วงระดับราคา"]
[null,"แผ่นงานนี้ควรยังคงซ่อนอยู่ การปรับเปลี่ยนใดๆ ที่ทำกับ PivotTable ด้านล่างอาจทำให้ข้อมูลผิดพลาดในรายงานการขายผลิตภัณฑ์ "]
[null,"ผลิตภัณฑ์ที่เลือก:",{"$f":"IF(LEN(B5),B5,\"ไม่มี\")","v":"กางเกงขาสั้น"}]
[null,"ชื่อผลิตภัณฑ์","ราคาขายปลีกต่อหน่วย","ผลรวม ของ จำนวนขายรวม (#)"]
[null,"กางเกงขาสั้น",{"v":20,"d":"฿20"},1883]
[null,null,{"v":24,"d":"฿24"},2818]
[null,null,{"v":41,"d":"฿41"},2310]
[null,null,{"v":82,"d":"฿82"},1965]
[null,null,{"v":85,"d":"฿85"},2147]
[null,null,{"v":98,"d":"฿98"},1982]

{"sheet":"Pivot แนวโน้มการขาย","index":4,"n_rows":9,"n_cols":3,"rows_kept":9,"hidden":true,"merged":[[1,1,1,3]]}
[null,"PivotTable แนวโน้มการขาย"]
[null,"แผ่นงานนี้ควรยังคงซ่อนอยู่ การปรับเปลี่ยนใดๆ ที่ทำกับ PivotTable ด้านล่างอาจทำให้ข้อมูลผิดพลาดในรายงานการขายผลิตภัณฑ์ "]
[null,"ผลรวม ของ จำนวนขายรวม (#)","ชื่อผลิตภัณฑ์"]
[null,"วันที่กำหนดราคา","กางเกงขาสั้น"]
[null,"ม.ค.",1883]
[null,"ก.พ.",4292]
[null,"มี.ค.",2147]
[null,"เม.ย.",1965]
[null,"ธ.ค.",2818]